[Event "Late-Titled-Tuesday-Blitz-January-16-2024"]
[Site "Chess.com"]
[Date "2024.01.16"]
[Round "11"]
[White "GiorgianBarbosa"]
[Black "GMCorinnaKopff"]
[Result "0-1"]
[WhiteElo "2447"]
[BlackElo "2343"]
[TimeControl "180+1"]
[EndTime "16:02:47 PST"]
[Termination "GMCorinnaKopff won by resignation"]

1. e4 {[%clk 0:02:59.3]} 1... c5 {[%clk 0:02:58.9]} 2. Nf3 {[%clk 0:02:59.1]}
2... e6 {[%clk 0:02:58.9]} 3. b3 {[%clk 0:02:56.1]} 3... b6 {[%clk 0:02:56.4]}
4. Bb2 {[%clk 0:02:55.1]} 4... Bb7 {[%clk 0:02:56.8]} 5. e5 {[%clk 0:02:55.8]}
5... d5 {[%clk 0:02:54.3]} 6. Na3 {[%clk 0:02:56.7]} 6... Nc6 {[%clk 0:02:54.2]}
7. d4 {[%clk 0:02:47.6]} 7... cxd4 {[%clk 0:02:54.1]} 8. Nxd4 {[%clk 0:02:47.6]}
8... Nge7 {[%clk 0:02:50.4]} 9. Nab5 {[%clk 0:02:41.3]} 9... Ng6 {[%clk
0:02:45.8]} 10. Nd6+ {[%clk 0:02:38.5]} 10... Bxd6 {[%clk 0:02:45]} 11. exd6
{[%clk 0:02:39.4]} 11... Qxd6 {[%clk 0:02:45.5]} 12. Nxc6 {[%clk 0:02:39.8]}
12... Bxc6 {[%clk 0:02:41.9]} 13. Bxg7 {[%clk 0:02:40.7]} 13... Rg8 {[%clk
0:02:41.6]} 14. Bb2 {[%clk 0:02:41.2]} 14... O-O-O {[%clk 0:02:36.2]} 15. Ba6+
{[%clk 0:02:39.5]} 15... Kb8 {[%clk 0:02:35.8]} 16. g3 {[%clk 0:02:22.9]} 16...
d4 {[%clk 0:02:35.4]} 17. O-O {[%clk 0:02:18.2]} 17... Nh4 {[%clk 0:02:21.3]}
18. f3 {[%clk 0:02:15.3]} 18... Rxg3+ {[%clk 0:02:19.3]} 19. Kf2 {[%clk
0:02:08.5]} 19... Rxf3+ {[%clk 0:02:13.5]} 20. Ke2 {[%clk 0:02:07.3]} 20...
Qxh2+ {[%clk 0:02:12.2]} 21. Ke1 {[%clk 0:02:03.9]} 21... Ng2+ {[%clk
0:02:02.5]} 22. Kd2 {[%clk 0:01:58.7]} 22... Ne3+ {[%clk 0:02:00]} 23. Qe2
{[%clk 0:01:58.8]} 23... Nxf1+ {[%clk 0:02:00.3]} 24. Rxf1 {[%clk 0:01:56.7]}
24... Qxe2+ {[%clk 0:01:54.7]} 25. Bxe2 {[%clk 0:01:57.6]} 25... Rxf1 {[%clk
0:01:54.3]} 26. Bxf1 {[%clk 0:01:58.5]} 26... e5 {[%clk 0:01:53.4]} 0-1

[Event "Late-Titled-Tuesday-Blitz-January-16-2024"]
[Site "Chess.com"]
[Date "2024.01.16"]
[Round "11"]
[White "Mikhail_Golubev"]
[Black "jinxy2009"]
[Result "1-0"]
[WhiteElo "2485"]
[BlackElo "2234"]
[TimeControl "180+1"]
[EndTime "16:02:48 PST"]
[Termination "Mikhail_Golubev won by resignation"]

1. d4 {[%clk 0:02:58.2]} 1... d5 {[%clk 0:02:59.4]} 2. c4 {[%clk 0:02:56.9]}
2... e6 {[%clk 0:02:59.5]} 3. Nc3 {[%clk 0:02:55.8]} 3... Nf6 {[%clk 0:02:59.9]}
4. Nf3 {[%clk 0:02:55]} 4... Be7 {[%clk 0:03:00.3]} 5. g3 {[%clk 0:02:52.7]}
5... O-O {[%clk 0:02:59]} 6. Bg2 {[%clk 0:02:48.3]} 6... c6 {[%clk 0:02:55.5]}
7. Qb3 {[%clk 0:02:40.1]} 7... a6 {[%clk 0:02:43.4]} 8. O-O {[%clk 0:02:34.3]}
8... b5 {[%clk 0:02:41.6]} 9. cxd5 {[%clk 0:02:30.7]} 9... cxd5 {[%clk
0:02:37.9]} 10. Ne5 {[%clk 0:02:27.1]} 10... Qc7 {[%clk 0:02:33.4]} 11. Bf4
{[%clk 0:02:18.8]} 11... Bd6 {[%clk 0:02:31.8]} 12. Rfc1 {[%clk 0:02:14.8]}
12... Qe7 {[%clk 0:02:22.3]} 13. e4 {[%clk 0:02:05.9]} 13... Bb7 {[%clk
0:02:19.1]} 14. exd5 {[%clk 0:02:05]} 14... Nxd5 {[%clk 0:02:17.2]} 15. Nxd5
{[%clk 0:02:02.2]} 15... exd5 {[%clk 0:02:09]} 16. Bxd5 {[%clk 0:02:00.5]} 16...
Bxd5 {[%clk 0:02:09.9]} 17. Qxd5 {[%clk 0:02:00.3]} 17... Ra7 {[%clk 0:02:09.9]}
18. Nc6 {[%clk 0:01:36.8]} 18... Nxc6 {[%clk 0:02:05.2]} 19. Bxd6 {[%clk
0:01:36.5]} 19... Qd7 {[%clk 0:01:55.4]} 20. Qxc6 {[%clk 0:01:35.3]} 1-0

[Event "Late-Titled-Tuesday-Blitz-January-16-2024"]
[Site "Chess.com"]
[Date "2024.01.16"]
[Round "11"]
[White "Hirna2005"]
[Black "miraitrunks"]
[Result "1-0"]
[WhiteElo "2261"]
[BlackElo "2097"]
[TimeControl "180+1"]
[EndTime "16:04:24 PST"]
[Termination "Hirna2005 won by checkmate"]

1. e4 {[%clk 0:03:00.9]} 1... e6 {[%clk 0:02:56.1]} 2. d4 {[%clk 0:03:00.3]}
2... d5 {[%clk 0:02:56.6]} 3. e5 {[%clk 0:03:01]} 3... Qd7 {[%clk 0:02:56.3]} 4.
Nf3 {[%clk 0:02:59.8]} 4... b6 {[%clk 0:02:55.8]} 5. Be3 {[%clk 0:02:54.4]} 5...
Ba6 {[%clk 0:02:35.1]} 6. Bxa6 {[%clk 0:02:52.4]} 6... Nxa6 {[%clk 0:02:36]} 7.
O-O {[%clk 0:02:50]} 7... c5 {[%clk 0:02:35.4]} 8. c3 {[%clk 0:02:49.3]} 8...
Ne7 {[%clk 0:02:26]} 9. Qe2 {[%clk 0:02:45.4]} 9... c4 {[%clk 0:02:20.9]} 10. b3
{[%clk 0:02:45.3]} 10... b5 {[%clk 0:02:18.7]} 11. a4 {[%clk 0:02:45.1]} 11...
Nf5 {[%clk 0:02:05.1]} 12. axb5 {[%clk 0:02:39.9]} 12... Qxb5 {[%clk 0:01:56.9]}
13. bxc4 {[%clk 0:02:40.1]} 13... dxc4 {[%clk 0:01:54.7]} 14. Nbd2 {[%clk
0:02:39.3]} 14... Nxe3 {[%clk 0:01:50.1]} 15. fxe3 {[%clk 0:02:38.9]} 15... Rc8
{[%clk 0:01:48]} 16. Rfb1 {[%clk 0:02:37.8]} 16... Qc6 {[%clk 0:01:46.6]} 17.
Ng5 {[%clk 0:02:26.6]} 17... Be7 {[%clk 0:01:31.3]} 18. Qh5 {[%clk 0:02:24.3]}
18... Bxg5 {[%clk 0:01:10.7]} 19. Qxg5 {[%clk 0:02:23.6]} 19... O-O {[%clk
0:01:10.6]} 20. Qh4 {[%clk 0:02:08.8]} 20... Rb8 {[%clk 0:01:08.3]} 21. Rf1
{[%clk 0:02:08.2]} 21... Nc7 {[%clk 0:01:05.2]} 22. Ne4 {[%clk 0:02:03]} 22...
Rb2 {[%clk 0:01:01]} 23. Rf3 {[%clk 0:01:58]} 23... Nd5 {[%clk 0:00:52.3]} 24.
Raf1 {[%clk 0:01:55.5]} 24... h6 {[%clk 0:00:43.9]} 25. Nf6+ {[%clk 0:01:48.8]}
25... gxf6 {[%clk 0:00:38.4]} 26. Qxh6 {[%clk 0:01:48.6]} 26... Ne7 {[%clk
0:00:30.4]} 27. exf6 {[%clk 0:01:43.1]} 27... Ng6 {[%clk 0:00:28.8]} 28. Qg7#
{[%clk 0:01:42.5]} 1-0

[Event "Late-Titled-Tuesday-Blitz-January-16-2024"]
[Site "Chess.com"]
[Date "2024.01.16"]
[Round "11"]
[White "Sargsyan_Shant"]
[Black "djano"]
[Result "1-0"]
[WhiteElo "2895"]
[BlackElo "2659"]
[TimeControl "180+1"]
[EndTime "16:04:27 PST"]
[Termination "Sargsyan_Shant won by resignation"]

1. c4 {[%clk 0:03:00.9]} 1... Nf6 {[%clk 0:02:59.3]} 2. Nc3 {[%clk 0:03:00.6]}
2... d5 {[%clk 0:02:58.7]} 3. cxd5 {[%clk 0:02:58.9]} 3... Nxd5 {[%clk
0:02:59.6]} 4. g3 {[%clk 0:02:57.5]} 4... g6 {[%clk 0:02:58.1]} 5. Bg2 {[%clk
0:02:57.6]} 5... Nxc3 {[%clk 0:02:58.6]} 6. bxc3 {[%clk 0:02:57.8]} 6... Bg7
{[%clk 0:02:59.2]} 7. h4 {[%clk 0:02:58.3]} 7... h6 {[%clk 0:02:53]} 8. Nf3
{[%clk 0:02:56.1]} 8... Nd7 {[%clk 0:02:48]} 9. a4 {[%clk 0:02:55.5]} 9... c5
{[%clk 0:02:45.3]} 10. a5 {[%clk 0:02:55.8]} 10... Rb8 {[%clk 0:02:39]} 11. O-O
{[%clk 0:02:45.9]} 11... O-O {[%clk 0:02:38.6]} 12. Qb3 {[%clk 0:02:42.4]} 12...
Nf6 {[%clk 0:02:32.8]} 13. d3 {[%clk 0:02:40]} 13... Be6 {[%clk 0:02:32]} 14. c4
{[%clk 0:02:37.3]} 14... Qc8 {[%clk 0:02:13.5]} 15. Bf4 {[%clk 0:02:36]} 15...
Nh5 {[%clk 0:01:53]} 16. Bxb8 {[%clk 0:02:34.8]} 16... Bxa1 {[%clk 0:01:53.2]}
17. Bxa7 {[%clk 0:02:31.9]} 17... Bg7 {[%clk 0:01:50.7]} 18. Qa3 {[%clk
0:02:31.6]} 18... Bg4 {[%clk 0:01:38.8]} 19. Qxc5 {[%clk 0:02:30.6]} 19... Qe6
{[%clk 0:01:39.2]} 20. Qe3 {[%clk 0:02:30.4]} 20... Qc8 {[%clk 0:01:22.6]} 21.
Bd4 {[%clk 0:02:25.8]} 21... e5 {[%clk 0:01:06.8]} 22. Nxe5 {[%clk 0:02:08.5]}
22... Re8 {[%clk 0:01:06.4]} 23. Qe4 {[%clk 0:02:08.5]} 23... Bf5 {[%clk
0:00:48.3]} 24. Qxb7 {[%clk 0:02:07.9]} 24... Qxb7 {[%clk 0:00:43.2]} 25. Bxb7
{[%clk 0:02:07.4]} 25... Bxe5 {[%clk 0:00:42.7]} 26. Bxe5 {[%clk 0:02:08.3]}
26... Rxe5 {[%clk 0:00:43.1]} 27. Ra1 {[%clk 0:02:09.2]} 27... Rxe2 {[%clk
0:00:22]} 28. a6 {[%clk 0:02:08.9]} 28... Bxd3 {[%clk 0:00:20.5]} 29. a7 {[%clk
0:02:08.4]} 29... Re8 {[%clk 0:00:21.1]} 30. c5 {[%clk 0:02:07]} 30... Nf6
{[%clk 0:00:18.6]} 31. c6 {[%clk 0:02:05.8]} 31... Be4 {[%clk 0:00:18]} 32. a8=Q
{[%clk 0:02:03.4]} 1-0

[Event "Late-Titled-Tuesday-Blitz-January-16-2024"]
[Site "Chess.com"]
[Date "2024.01.16"]
[Round "11"]
[White "giomar27"]
[Black "C_K_G"]
[Result "1-0"]
[WhiteElo "2380"]
[BlackElo "2095"]
[TimeControl "180+1"]
[EndTime "16:04:47 PST"]
[Termination "giomar27 won by resignation"]

1. f3 {[%clk 0:03:00.9]} 1... d5 {[%clk 0:02:59.3]} 2. g3 {[%clk 0:03:01.2]}
2... Nf6 {[%clk 0:02:59.6]} 3. Nh3 {[%clk 0:03:01.8]} 3... e5 {[%clk 0:02:59.4]}
4. Nf2 {[%clk 0:03:02.4]} 4... e4 {[%clk 0:02:57.2]} 5. Bg2 {[%clk 0:03:02.1]}
5... Bc5 {[%clk 0:02:46.6]} 6. O-O {[%clk 0:03:00.8]} 6... O-O {[%clk
0:02:39.4]} 7. e3 {[%clk 0:02:57.6]} 7... exf3 {[%clk 0:02:36.4]} 8. Bxf3 {[%clk
0:02:55]} 8... Nc6 {[%clk 0:02:32.4]} 9. Nc3 {[%clk 0:02:53.4]} 9... Ne5 {[%clk
0:02:28.8]} 10. Bg2 {[%clk 0:02:52.7]} 10... Neg4 {[%clk 0:02:27.5]} 11. Nd3
{[%clk 0:02:45.7]} 11... Bd6 {[%clk 0:02:14]} 12. Nf4 {[%clk 0:02:43.7]} 12...
c6 {[%clk 0:02:07.6]} 13. b3 {[%clk 0:02:43.5]} 13... Re8 {[%clk 0:01:55.6]} 14.
Bb2 {[%clk 0:02:42.4]} 14... Ne4 {[%clk 0:01:53.7]} 15. Nxe4 {[%clk 0:02:29.7]}
15... dxe4 {[%clk 0:01:53]} 16. h3 {[%clk 0:02:29.5]} 16... Nh6 {[%clk
0:01:45.8]} 17. Qh5 {[%clk 0:02:24.7]} 17... Nf5 {[%clk 0:01:34.4]} 18. Kh2
{[%clk 0:02:13.1]} 18... g6 {[%clk 0:01:30.5]} 19. Qe2 {[%clk 0:02:12]} 19...
Qg5 {[%clk 0:01:14.3]} 20. g4 {[%clk 0:02:06.3]} 20... Nh4 {[%clk 0:01:11.7]}
21. Rf2 {[%clk 0:02:05.4]} 21... Nf3+ {[%clk 0:01:02.4]} 22. Bxf3 {[%clk
0:02:04.9]} 22... Bxf4+ {[%clk 0:01:01.6]} 23. exf4 {[%clk 0:02:02.8]} 23...
Qxf4+ {[%clk 0:00:54.3]} 24. Kg1 {[%clk 0:02:00.3]} 24... Bd7 {[%clk 0:00:26]}
25. Bg2 {[%clk 0:01:58.3]} 25... Qg3 {[%clk 0:00:19.6]} 26. Qe3 {[%clk
0:01:58.5]} 26... Qd6 {[%clk 0:00:17.1]} 27. Qh6 {[%clk 0:01:57.9]} 27... f6
{[%clk 0:00:14.9]} 28. Rxf6 {[%clk 0:01:55.3]} 28... Qe7 {[%clk 0:00:13.1]} 29.
Raf1 {[%clk 0:01:54]} 29... e3 {[%clk 0:00:08.8]} 30. Rxg6+ {[%clk 0:01:54.2]}
1-0

[Event "Late-Titled-Tuesday-Blitz-January-16-2024"]
[Site "Chess.com"]
[Date "2024.01.16"]
[Round "11"]
[White "Viktor_Poddubnyi"]
[Black "babero_gordo"]
[Result "1-0"]
[WhiteElo "2255"]
[BlackElo "1988"]
[TimeControl "180+1"]
[EndTime "16:05:05 PST"]
[Termination "Viktor_Poddubnyi won by resignation"]

1. e4 {[%clk 0:03:00]} 1... g6 {[%clk 0:02:59.6]} 2. d4 {[%clk 0:02:59.7]} 2...
Bg7 {[%clk 0:03:00.1]} 3. c4 {[%clk 0:03:00.1]} 3... d6 {[%clk 0:03:00.7]} 4.
Nc3 {[%clk 0:03:00.4]} 4... e5 {[%clk 0:03:00]} 5. Nf3 {[%clk 0:03:00.2]} 5...
Nc6 {[%clk 0:02:51.4]} 6. dxe5 {[%clk 0:02:39.5]} 6... Nxe5 {[%clk 0:02:48.2]}
7. Nxe5 {[%clk 0:02:38]} 7... Bxe5 {[%clk 0:02:46]} 8. Be2 {[%clk 0:02:34.6]}
8... Bg7 {[%clk 0:02:42.6]} 9. O-O {[%clk 0:02:33.7]} 9... Ne7 {[%clk
0:02:41.1]} 10. f4 {[%clk 0:02:25.3]} 10... Nc6 {[%clk 0:02:40.8]} 11. Be3
{[%clk 0:02:23]} 11... O-O {[%clk 0:02:40]} 12. Bf3 {[%clk 0:02:21]} 12... Na5
{[%clk 0:02:13.1]} 13. Qd3 {[%clk 0:02:17.3]} 13... Be6 {[%clk 0:01:57.9]} 14.
b3 {[%clk 0:02:10.3]} 14... Qf6 {[%clk 0:01:57.2]} 15. Rac1 {[%clk 0:02:06]}
15... Nc6 {[%clk 0:01:42.7]} 16. Nd5 {[%clk 0:02:01.5]} 16... Qd8 {[%clk
0:01:38.4]} 17. Rfe1 {[%clk 0:01:46.5]} 17... f5 {[%clk 0:01:36.2]} 18. exf5
{[%clk 0:01:23.5]} 18... Bxf5 {[%clk 0:01:35.3]} 19. Qd2 {[%clk 0:01:23.7]}
19... Qd7 {[%clk 0:01:27.8]} 20. Bf2 {[%clk 0:01:14.5]} 20... Rae8 {[%clk
0:01:26.8]} 21. h3 {[%clk 0:01:06.7]} 21... h5 {[%clk 0:01:13.5]} 22. Kh2 {[%clk
0:01:03.4]} 22... Ne7 {[%clk 0:01:04.6]} 23. Nxe7+ {[%clk 0:00:54.7]} 23... Rxe7
{[%clk 0:01:04.6]} 24. Rxe7 {[%clk 0:00:52.1]} 24... Qxe7 {[%clk 0:01:04.7]} 25.
Bxb7 {[%clk 0:00:52.2]} 25... Be4 {[%clk 0:00:59.6]} 26. Re1 {[%clk 0:00:46.4]}
26... d5 {[%clk 0:00:47.7]} 1-0

[Event "Late-Titled-Tuesday-Blitz-January-16-2024"]
[Site "Chess.com"]
[Date "2024.01.16"]
[Round "11"]
[White "sergeikim"]
[Black "RianKapriaga"]
[Result "1-0"]
[WhiteElo "2546"]
[BlackElo "2358"]
[TimeControl "180+1"]
[EndTime "16:05:06 PST"]
[Termination "sergeikim won on time"]

1. d4 {[%clk 0:03:00.9]} 1... Nf6 {[%clk 0:02:55.3]} 2. c4 {[%clk 0:03:00.1]}
2... e6 {[%clk 0:02:55.1]} 3. Nc3 {[%clk 0:03:00.1]} 3... Bb4 {[%clk 0:02:55.2]}
4. Qc2 {[%clk 0:03:00.2]} 4... O-O {[%clk 0:02:50]} 5. a3 {[%clk 0:03:00.2]}
5... Bxc3+ {[%clk 0:02:46.8]} 6. Qxc3 {[%clk 0:03:00.5]} 6... b6 {[%clk
0:02:43.9]} 7. Nf3 {[%clk 0:03:00.2]} 7... Bb7 {[%clk 0:02:43.5]} 8. g3 {[%clk
0:03:00.1]} 8... d6 {[%clk 0:02:43.3]} 9. Bg2 {[%clk 0:02:59.5]} 9... Nbd7
{[%clk 0:02:43]} 10. O-O {[%clk 0:02:58.6]} 10... Qe7 {[%clk 0:02:43]} 11. b3
{[%clk 0:02:58.3]} 11... Ne4 {[%clk 0:02:35.1]} 12. Qc2 {[%clk 0:02:58.2]} 12...
f5 {[%clk 0:02:31.2]} 13. Ne1 {[%clk 0:02:47.8]} 13... Rae8 {[%clk 0:02:16.9]}
14. Nd3 {[%clk 0:02:46]} 14... Ba8 {[%clk 0:02:07.4]} 15. a4 {[%clk 0:02:45.6]}
15... Ndf6 {[%clk 0:01:54.6]} 16. f3 {[%clk 0:02:44.7]} 16... Nxg3 {[%clk
0:01:40.2]} 17. hxg3 {[%clk 0:02:43.3]} 17... Nh5 {[%clk 0:01:40.7]} 18. Kf2
{[%clk 0:02:37.2]} 18... e5 {[%clk 0:01:37.1]} 19. Rh1 {[%clk 0:02:33.7]} 19...
Nf6 {[%clk 0:01:35.1]} 20. d5 {[%clk 0:02:31.1]} 20... Ne4+ {[%clk 0:01:30.5]}
21. fxe4 {[%clk 0:02:26.7]} 21... fxe4+ {[%clk 0:01:30.1]} 22. Ke1 {[%clk
0:02:20.6]} 22... exd3 {[%clk 0:01:29.9]} 23. Qxd3 {[%clk 0:02:20.7]} 23... g6
{[%clk 0:01:29.8]} 24. Bh3 {[%clk 0:02:08.7]} 24... Bb7 {[%clk 0:01:19.1]} 25.
Be6+ {[%clk 0:02:07.3]} 25... Kh8 {[%clk 0:01:17]} 26. Qxg6 {[%clk 0:02:01.1]}
26... Qg7 {[%clk 0:00:31.5]} 27. Qxg7+ {[%clk 0:01:59.7]} 27... Kxg7 {[%clk
0:00:31.4]} 28. Bh6+ {[%clk 0:01:59.2]} 28... Kg6 {[%clk 0:00:25.4]} 29. Bxf8
{[%clk 0:01:57.9]} 29... Rxf8 {[%clk 0:00:21.8]} 30. Rf1 {[%clk 0:01:55.5]}
30... Re8 {[%clk 0:00:20]} 31. Bf7+ {[%clk 0:01:53.3]} 31... Kg5 {[%clk
0:00:15.2]} 32. Bxe8 {[%clk 0:01:53]} 32... Bc8 {[%clk 0:00:14.1]} 33. Rf7
{[%clk 0:01:51.1]} 1-0

[Event "Late-Titled-Tuesday-Blitz-January-16-2024"]
[Site "Chess.com"]
[Date "2024.01.16"]
[Round "11"]
[White "Njal28"]
[Black "varunkrishnanchess"]
[Result "1-0"]
[WhiteElo "3006"]
[BlackElo "2642"]
[TimeControl "180+1"]
[EndTime "16:05:15 PST"]
[Termination "Njal28 won by resignation"]

1. e4 {[%clk 0:03:00.9]} 1... c5 {[%clk 0:02:53.9]} 2. a3 {[%clk 0:02:59.5]}
2... d6 {[%clk 0:02:52.1]} 3. b4 {[%clk 0:02:57.9]} 3... Nf6 {[%clk 0:02:44.8]}
4. Nc3 {[%clk 0:02:57.3]} 4... g6 {[%clk 0:02:41.8]} 5. bxc5 {[%clk 0:02:56]}
5... dxc5 {[%clk 0:02:39.5]} 6. e5 {[%clk 0:02:56.1]} 6... Nd5 {[%clk
0:02:36.7]} 7. Bb5+ {[%clk 0:02:52]} 7... Bd7 {[%clk 0:02:35.7]} 8. Qf3 {[%clk
0:02:38.8]} 8... Bxb5 {[%clk 0:02:28.9]} 9. Nxb5 {[%clk 0:02:35]} 9... e6 {[%clk
0:02:14.2]} 10. c4 {[%clk 0:02:15.9]} 10... Nb6 {[%clk 0:02:13.2]} 11. Qxb7
{[%clk 0:02:14.5]} 11... Qd7 {[%clk 0:02:07.9]} 12. Qxd7+ {[%clk 0:01:38]} 12...
Kxd7 {[%clk 0:02:01.4]} 13. d3 {[%clk 0:01:38.1]} 13... Nc6 {[%clk 0:01:59.7]}
14. f4 {[%clk 0:01:35.4]} 14... g5 {[%clk 0:01:57.5]} 15. Nf3 {[%clk 0:01:33.6]}
15... gxf4 {[%clk 0:01:56.4]} 16. Bxf4 {[%clk 0:01:34.5]} 16... Rg8 {[%clk
0:01:53.4]} 17. O-O {[%clk 0:01:34]} 17... Na4 {[%clk 0:01:47.8]} 18. Rab1
{[%clk 0:01:29.5]} 18... Rb8 {[%clk 0:01:43.8]} 19. Ng5 {[%clk 0:01:27.3]} 19...
a6 {[%clk 0:01:38]} 20. Ne4 {[%clk 0:01:26.1]} 20... Be7 {[%clk 0:01:34.3]} 21.
Nbd6 {[%clk 0:01:24.4]} 21... Nd4 {[%clk 0:01:32.8]} 22. Kf2 {[%clk 0:01:17.6]}
22... Nf5 {[%clk 0:01:08.5]} 23. Nxf5 {[%clk 0:01:12.8]} 23... exf5 {[%clk
0:01:08.2]} 24. e6+ {[%clk 0:01:10.6]} 24... fxe6 {[%clk 0:01:07.9]} 25. Rxb8
{[%clk 0:01:10.7]} 25... Rxb8 {[%clk 0:01:07.1]} 26. Bxb8 {[%clk 0:01:10.1]}
26... fxe4 {[%clk 0:01:07.4]} 27. dxe4 {[%clk 0:01:11]} 27... Nb2 {[%clk
0:01:07.1]} 28. Ke2 {[%clk 0:01:04.4]} 28... Nxc4 {[%clk 0:01:06.6]} 29. Rf7
{[%clk 0:01:04.8]} 29... Nxa3 {[%clk 0:01:05.3]} 30. Rxh7 {[%clk 0:01:04.7]}
30... Nb5 {[%clk 0:01:05.2]} 31. g4 {[%clk 0:01:03.7]} 31... a5 {[%clk
0:01:01.8]} 32. g5 {[%clk 0:01:03.2]} 32... Ke8 {[%clk 0:00:55.6]} 33. g6 {[%clk
0:01:04.1]} 33... Nd4+ {[%clk 0:00:43.2]} 34. Kf2 {[%clk 0:00:58.2]} 34... Nc6
{[%clk 0:00:43.3]} 35. Rh8+ {[%clk 0:00:56.8]} 1-0

[Event "Late-Titled-Tuesday-Blitz-January-16-2024"]
[Site "Chess.com"]
[Date "2024.01.16"]
[Round "11"]
[White "cthulhuuu"]
[Black "dosto07"]
[Result "0-1"]
[WhiteElo "2444"]
[BlackElo "2545"]
[TimeControl "180+1"]
[EndTime "16:05:29 PST"]
[Termination "dosto07 won on time"]

1. e4 {[%clk 0:03:00.1]} 1... e5 {[%clk 0:02:56.2]} 2. Nf3 {[%clk 0:03:00.1]}
2... Nc6 {[%clk 0:02:56.7]} 3. Bb5 {[%clk 0:03:00.1]} 3... a6 {[%clk 0:02:56.4]}
4. Bxc6 {[%clk 0:03:00.2]} 4... dxc6 {[%clk 0:02:55.5]} 5. O-O {[%clk
0:03:01.1]} 5... Bg4 {[%clk 0:02:55.4]} 6. h3 {[%clk 0:03:01.4]} 6... Bh5 {[%clk
0:02:55.7]} 7. g4 {[%clk 0:02:56.2]} 7... Bg6 {[%clk 0:02:55.9]} 8. Nxe5 {[%clk
0:02:56.6]} 8... Qh4 {[%clk 0:02:55.7]} 9. Qf3 {[%clk 0:02:50.2]} 9... f6 {[%clk
0:02:55.7]} 10. Nxg6 {[%clk 0:02:47.4]} 10... hxg6 {[%clk 0:02:55.9]} 11. Kg2
{[%clk 0:02:47.6]} 11... Ne7 {[%clk 0:02:55.6]} 12. Qg3 {[%clk 0:02:33.4]} 12...
Qh7 {[%clk 0:02:51.4]} 13. Rh1 {[%clk 0:02:11.5]} 13... g5 {[%clk 0:02:49.8]}
14. d3 {[%clk 0:01:39.8]} 14... O-O-O {[%clk 0:02:49.4]} 15. f4 {[%clk 0:01:25]}
15... Ng6 {[%clk 0:02:46.3]} 16. Nc3 {[%clk 0:00:46.1]} 16... Bd6 {[%clk
0:02:29.2]} 17. Ne2 {[%clk 0:00:42]} 17... gxf4 {[%clk 0:02:21.4]} 18. Qf2
{[%clk 0:00:19.4]} 18... Nh4+ {[%clk 0:02:12.6]} 19. Kf1 {[%clk 0:00:18.9]}
19... f3 {[%clk 0:02:13]} 20. Ng1 {[%clk 0:00:13.4]} 20... g6 {[%clk 0:01:50.2]}
21. Nxf3 {[%clk 0:00:13.3]} 21... Nxf3 {[%clk 0:01:47.3]} 22. Qxf3 {[%clk
0:00:14.2]} 22... Be5 {[%clk 0:01:46.2]} 23. c3 {[%clk 0:00:11.4]} 23... c5
{[%clk 0:01:43.1]} 24. Ke2 {[%clk 0:00:10]} 24... Qd7 {[%clk 0:01:40.3]} 25. Rd1
{[%clk 0:00:08.4]} 25... Rh7 {[%clk 0:01:33.6]} 26. Be3 {[%clk 0:00:08.3]} 26...
Rdh8 {[%clk 0:01:31.8]} 27. Rh1 {[%clk 0:00:08.5]} 27... Qb5 {[%clk 0:01:30.6]}
28. Rab1 {[%clk 0:00:05.6]} 28... Qa4 {[%clk 0:01:29]} 29. Rbc1 {[%clk
0:00:01.6]} 29... Qxa2 {[%clk 0:01:28.5]} 30. Rc2 {[%clk 0:00:01.6]} 30... Bxc3
{[%clk 0:01:19.1]} 0-1

[Event "Late-Titled-Tuesday-Blitz-January-16-2024"]
[Site "Chess.com"]
[Date "2024.01.16"]
[Round "11"]
[White "Zkid"]
[Black "MKlose11"]
[Result "1-0"]
[WhiteElo "2911"]
[BlackElo "2647"]
[TimeControl "180+1"]
[EndTime "16:05:35 PST"]
[Termination "Zkid won by resignation"]

1. e4 {[%clk 0:02:38.4]} 1... e6 {[%clk 0:02:59.8]} 2. d4 {[%clk 0:02:38.2]}
2... d5 {[%clk 0:02:57.9]} 3. Nc3 {[%clk 0:02:38.6]} 3... Bb4 {[%clk 0:02:57.5]}
4. exd5 {[%clk 0:02:39]} 4... exd5 {[%clk 0:02:57.4]} 5. Bd3 {[%clk 0:02:39.7]}
5... Nc6 {[%clk 0:02:57.1]} 6. Ne2 {[%clk 0:02:40]} 6... Nce7 {[%clk 0:02:54.3]}
7. Ng3 {[%clk 0:02:36.2]} 7... Nf6 {[%clk 0:02:48.3]} 8. O-O {[%clk 0:02:32.7]}
8... O-O {[%clk 0:02:44.8]} 9. Bg5 {[%clk 0:02:28.9]} 9... Qd6 {[%clk
0:02:32.5]} 10. Nb5 {[%clk 0:02:24.1]} 10... Qb6 {[%clk 0:02:28.4]} 11. c3
{[%clk 0:02:14.1]} 11... Bd6 {[%clk 0:02:24.4]} 12. Bxf6 {[%clk 0:02:12.9]}
12... gxf6 {[%clk 0:01:29.7]} 13. Nh5 {[%clk 0:02:00.7]} 13... Kh8 {[%clk
0:01:13.4]} 14. Qd2 {[%clk 0:01:48.3]} 14... Ng8 {[%clk 0:01:10]} 15. Rae1
{[%clk 0:01:37.1]} 15... Bd7 {[%clk 0:01:08.9]} 16. Nxd6 {[%clk 0:01:31.1]}
16... Qxd6 {[%clk 0:01:09.8]} 17. Re3 {[%clk 0:01:30.6]} 17... Bg4 {[%clk
0:01:00.1]} 18. Ng3 {[%clk 0:01:29]} 18... Rae8 {[%clk 0:00:56.9]} 19. Rfe1
{[%clk 0:01:27.2]} 19... Rxe3 {[%clk 0:00:55.3]} 20. Qxe3 {[%clk 0:01:26.2]}
20... Bd7 {[%clk 0:00:55.1]} 21. Qf3 {[%clk 0:01:19.5]} 21... c6 {[%clk
0:00:47.8]} 22. Nh5 {[%clk 0:01:13.4]} 22... f5 {[%clk 0:00:31]} 23. Bxf5 {[%clk
0:01:11]} 23... Bxf5 {[%clk 0:00:31]} 24. Qxf5 {[%clk 0:01:11.2]} 24... Qg6
{[%clk 0:00:31.9]} 25. Qf3 {[%clk 0:01:09]} 25... Nh6 {[%clk 0:00:24]} 26. Nf6
{[%clk 0:01:04.1]} 26... Nf5 {[%clk 0:00:21.7]} 27. Nd7 {[%clk 0:01:01.2]} 27...
Rd8 {[%clk 0:00:20.2]} 28. Ne5 {[%clk 0:00:59.7]} 28... Qf6 {[%clk 0:00:19]} 29.
g4 {[%clk 0:00:56.8]} 29... Rg8 {[%clk 0:00:16.8]} 30. Kh1 {[%clk 0:00:51.9]}
1-0